[Event "*** SCC Grand Prix: Titled Tuesday Blitz"]
[Site "Chess.com"]
[Date "2020.09.29"]
[Round "1"]
[White "Omk124"]
[Black "jefferyx"]
[Result "0-1"]
[WhiteElo "2446"]
[BlackElo "2955"]
[TimeControl "180+1"]
[EndTime "10:07:08 PDT"]
[Termination "jefferyx won by resignation"]

1. e4 {[%clk 0:03:00.9]} 1... c5 {[%clk 0:02:51.7]} 2. Nf3 {[%clk 0:03:00.7]}
2... e6 {[%clk 0:02:52.2]} 3. d4 {[%clk 0:03:00.6]} 3... cxd4 {[%clk 0:02:53.1]}
4. Nxd4 {[%clk 0:03:01.5]} 4... Nc6 {[%clk 0:02:54]} 5. g3 {[%clk 0:03:00.9]}
5... h5 {[%clk 0:02:41.5]} 6. Bg2 {[%clk 0:02:58.5]} 6... h4 {[%clk 0:02:41.7]}
7. O-O {[%clk 0:02:57.3]} 7... Nxd4 {[%clk 0:02:30.3]} 8. Qxd4 {[%clk
0:02:57.2]} 8... Ne7 {[%clk 0:02:31.2]} 9. Nc3 {[%clk 0:02:55.9]} 9... Nc6
{[%clk 0:02:31.3]} 10. Qd1 {[%clk 0:02:54.9]} 10... a6 {[%clk 0:02:27.7]} 11.
Bf4 {[%clk 0:02:54.1]} 11... b5 {[%clk 0:02:21.8]} 12. Bd6 {[%clk 0:02:52.8]}
12... Bb7 {[%clk 0:01:45.4]} 13. e5 {[%clk 0:02:50.1]} 13... hxg3 {[%clk
0:01:31.4]} 14. hxg3 {[%clk 0:02:48.8]} 14... Qg5 {[%clk 0:01:31.6]} 15. Bxf8
{[%clk 0:02:45.2]} 15... Kxf8 {[%clk 0:01:28.1]} 16. Qxd7 {[%clk 0:02:44.3]}
16... Qh5 {[%clk 0:01:12.7]} 17. f3 {[%clk 0:02:39.4]} 17... Rb8 {[%clk
0:00:57.2]} 18. f4 {[%clk 0:02:33.4]} 18... Kg8 {[%clk 0:00:47.5]} 19. Kf2
{[%clk 0:02:30.8]} 19... Nxe5 {[%clk 0:00:42.5]} 20. fxe5 {[%clk 0:02:04.9]}
20... Qh2 {[%clk 0:00:20.6]} 21. Ke2 {[%clk 0:01:30]} 21... Bxg2 {[%clk
0:00:11.2]} 22. Qxf7+ {[%clk 0:01:29.7]} 22... Kh7 {[%clk 0:00:11.8]} 23. Rf2
{[%clk 0:01:25]} 23... Rhf8 {[%clk 0:00:10.6]} 24. Qxf8 {[%clk 0:01:19.4]} 24...
Rxf8 {[%clk 0:00:11.5]} 25. Rxf8 {[%clk 0:01:19.9]} 25... Qxg3 {[%clk
0:00:12.3]} 26. Rf2 {[%clk 0:01:15.3]} 26... Qxe5+ {[%clk 0:00:12.4]} 27. Kd2
{[%clk 0:01:15.3]} 27... Qg5+ {[%clk 0:00:12.3]} 28. Ke2 {[%clk 0:01:15]} 28...
b4 {[%clk 0:00:12.2]} 29. Nd1 {[%clk 0:01:06.4]} 29... Qg4+ {[%clk 0:00:12.4]}
30. Kd2 {[%clk 0:01:03.5]} 30... Qd4+ {[%clk 0:00:12.7]} 31. Ke2 {[%clk
0:01:03.6]} 31... Bc6 {[%clk 0:00:12.4]} 32. Ne3 {[%clk 0:01:03.5]} 32... Qxb2
{[%clk 0:00:12]} 33. Rg1 {[%clk 0:01:03.8]} 33... Qxa2 {[%clk 0:00:11.2]} 34.
Rf7 {[%clk 0:01:01.9]} 34... Qb2 {[%clk 0:00:08.7]} 35. Kd2 {[%clk 0:00:58.7]}
35... Qc3+ {[%clk 0:00:08.3]} 36. Ke2 {[%clk 0:00:59.3]} 36... Bb5+ {[%clk
0:00:08.8]} 37. Kf2 {[%clk 0:00:58.3]} 37... Qd2+ {[%clk 0:00:08.7]} 38. Kf3
{[%clk 0:00:57.8]} 38... Bc6+ {[%clk 0:00:09.1]} 39. Kg4 {[%clk 0:00:43.5]}
39... Qxe3 {[%clk 0:00:08.7]} 40. Rg3 {[%clk 0:00:43.2]} 40... Qe4+ {[%clk
0:00:06.7]} 41. Kh3 {[%clk 0:00:43.1]} 41... Qh1+ {[%clk 0:00:06.9]} 42. Kg4
{[%clk 0:00:43.6]} 42... Be4 {[%clk 0:00:06]} 43. Re7 {[%clk 0:00:40.1]} 43...
Bf5+ {[%clk 0:00:05.8]} 44. Kf4 {[%clk 0:00:40.4]} 44... Qh4+ {[%clk 0:00:06.2]}
45. Kf3 {[%clk 0:00:40.4]} 45... Qxe7 {[%clk 0:00:06.9]} 0-1

[Event "*** SCC Grand Prix: Titled Tuesday Blitz"]
[Site "Chess.com"]
[Date "2020.09.29"]
[Round "1"]
[White "Herracek"]
[Black "PavelChernomordik"]
[Result "1-0"]
[WhiteElo "2635"]
[BlackElo "2312"]
[TimeControl "180+1"]
[EndTime "10:07:08 PDT"]
[Termination "Herracek won by resignation"]

1. c4 {[%clk 0:02:57.5]} 1... g6 {[%clk 0:02:59.2]} 2. g3 {[%clk 0:02:56.1]}
2... Bg7 {[%clk 0:02:58.4]} 3. Bg2 {[%clk 0:02:54.2]} 3... e5 {[%clk 0:02:56.6]}
4. Nc3 {[%clk 0:02:51.2]} 4... Nc6 {[%clk 0:02:55.8]} 5. Rb1 {[%clk 0:02:45.8]}
5... d6 {[%clk 0:02:51.1]} 6. b4 {[%clk 0:02:45.4]} 6... Bf5 {[%clk 0:02:41]} 7.
d3 {[%clk 0:02:44.8]} 7... Qd7 {[%clk 0:02:38.5]} 8. b5 {[%clk 0:02:44.4]} 8...
Nd8 {[%clk 0:02:36.7]} 9. h3 {[%clk 0:02:39.1]} 9... h6 {[%clk 0:02:11.6]} 10.
Nf3 {[%clk 0:02:37.6]} 10... g5 {[%clk 0:02:06.1]} 11. e4 {[%clk 0:02:30.4]}
11... Bg6 {[%clk 0:02:02.5]} 12. Be3 {[%clk 0:02:28.1]} 12... Nf6 {[%clk
0:01:54.8]} 13. Qd2 {[%clk 0:02:25]} 13... Ne6 {[%clk 0:01:52.8]} 14. Nd5 {[%clk
0:02:21.8]} 14... Nh5 {[%clk 0:01:39.4]} 15. h4 {[%clk 0:02:16.1]} 15... g4
{[%clk 0:01:29.7]} 16. Nh2 {[%clk 0:02:03.9]} 16... Nd4 {[%clk 0:01:28.1]} 17.
Bxd4 {[%clk 0:02:01.7]} 17... exd4 {[%clk 0:01:24.7]} 18. Nxg4 {[%clk
0:01:56.3]} 18... Qxg4 {[%clk 0:01:18.7]} 19. Nxc7+ {[%clk 0:01:55.3]} 19... Ke7
{[%clk 0:01:16.4]} 20. Nxa8 {[%clk 0:01:32.9]} 20... Rxa8 {[%clk 0:01:07.7]} 21.
Qa5 {[%clk 0:01:32.2]} 21... Nxg3 {[%clk 0:00:55.3]} 22. Qc7+ {[%clk 0:01:24.1]}
22... Ke8 {[%clk 0:00:53]} 23. fxg3 {[%clk 0:01:21.2]} 23... Qxg3+ {[%clk
0:00:51.2]} 24. Kf1 {[%clk 0:01:20.7]} 24... Bh5 {[%clk 0:00:46.5]} 25. Rh3
{[%clk 0:01:12.1]} 25... Qf4+ {[%clk 0:00:41.4]} 26. Kg1 {[%clk 0:01:11.3]}
26... Be2 {[%clk 0:00:34.3]} 27. Qxb7 {[%clk 0:00:59.4]} 27... Rd8 {[%clk
0:00:32.2]} 28. e5 {[%clk 0:00:59.5]} 28... Bxe5 {[%clk 0:00:27.8]} 29. Qe4
{[%clk 0:00:57.9]} 29... Qxe4 {[%clk 0:00:24]} 30. Bxe4 {[%clk 0:00:58.7]} 30...
Ke7 {[%clk 0:00:23.3]} 31. Kf2 {[%clk 0:00:55.7]} 31... Bg4 {[%clk 0:00:21]} 32.
Rhh1 {[%clk 0:00:55.5]} 32... f5 {[%clk 0:00:19.5]} 33. Bd5 {[%clk 0:00:55.8]}
33... Bf4 {[%clk 0:00:17.8]} 34. Rbe1+ {[%clk 0:00:54.5]} 34... Be3+ {[%clk
0:00:15.5]} 35. Rxe3+ {[%clk 0:00:55]} 35... dxe3+ {[%clk 0:00:14.8]} 36. Kxe3
{[%clk 0:00:55.9]} 36... Rf8 {[%clk 0:00:13.8]} 37. Kf4 {[%clk 0:00:55.8]} 37...
Kf6 {[%clk 0:00:12.2]} 38. a4 {[%clk 0:00:56.3]} 38... Re8 {[%clk 0:00:11.3]}
39. a5 {[%clk 0:00:56.8]} 39... Re2 {[%clk 0:00:09.6]} 40. b6 {[%clk 0:00:56]}
40... axb6 {[%clk 0:00:09.4]} 41. axb6 {[%clk 0:00:56.9]} 41... Rb2 {[%clk
0:00:08.6]} 42. b7 {[%clk 0:00:56.9]} 42... Be2 {[%clk 0:00:06.8]} 43. Re1
{[%clk 0:00:56.5]} 43... Bxd3 {[%clk 0:00:06.8]} 44. Re8 {[%clk 0:00:56.3]}
44... Kg7 {[%clk 0:00:07.2]} 45. b8=Q {[%clk 0:00:56]} 1-0

[Event "*** SCC Grand Prix: Titled Tuesday Blitz"]
[Site "Chess.com"]
[Date "2020.09.29"]
[Round "1"]
[White "stanyga"]
[Black "GMJustin"]
[Result "1-0"]
[WhiteElo "2604"]
[BlackElo "2295"]
[TimeControl "180+1"]
[EndTime "10:07:08 PDT"]
[Termination "stanyga won on time"]

1. e4 {[%clk 0:03:00.2]} 1... c5 {[%clk 0:02:39.9]} 2. Nf3 {[%clk 0:02:59.7]}
2... Nc6 {[%clk 0:02:38.4]} 3. Bb5 {[%clk 0:02:58.3]} 3... e5 {[%clk 0:02:38.1]}
4. O-O {[%clk 0:02:56.4]} 4... Bd6 {[%clk 0:02:37.5]} 5. Na3 {[%clk 0:02:49.5]}
5... Nge7 {[%clk 0:02:28]} 6. c3 {[%clk 0:02:48.9]} 6... O-O {[%clk 0:02:07.4]}
7. d4 {[%clk 0:02:31.8]} 7... cxd4 {[%clk 0:02:05.5]} 8. cxd4 {[%clk 0:02:31.7]}
8... exd4 {[%clk 0:02:01.5]} 9. Nxd4 {[%clk 0:02:28.4]} 9... Bxa3 {[%clk
0:01:50.7]} 10. bxa3 {[%clk 0:02:22]} 10... d5 {[%clk 0:01:44.4]} 11. Bg5 {[%clk
0:01:39.8]} 11... f6 {[%clk 0:01:32.8]} 12. Bf4 {[%clk 0:01:23.2]} 12... dxe4
{[%clk 0:01:26.4]} 13. Nb3 {[%clk 0:01:15.4]} 13... Qxd1 {[%clk 0:00:56.4]} 14.
Raxd1 {[%clk 0:01:06.8]} 14... Bg4 {[%clk 0:00:56.1]} 15. Rc1 {[%clk 0:01:03.9]}
15... Rac8 {[%clk 0:00:40.1]} 16. Rfe1 {[%clk 0:00:56.1]} 16... Bf5 {[%clk
0:00:23.4]} 17. Nc5 {[%clk 0:00:42.4]} 17... b6 {[%clk 0:00:23.4]} 18. Nb7
{[%clk 0:00:38.4]} 18... Nd4 {[%clk 0:00:14.8]} 19. Bc4+ {[%clk 0:00:37.9]}
19... Be6 {[%clk 0:00:10.7]} 20. Rxe4 {[%clk 0:00:12.5]} 20... Bxc4 {[%clk
0:00:06.9]} 21. Rxd4 {[%clk 0:00:11.5]} 21... Bd5 {[%clk 0:00:04.2]} 22. Re1
{[%clk 0:00:11.7]} 22... Bxb7 {[%clk 0:00:03.4]} 23. Rxe7 {[%clk 0:00:11.6]}
23... Rf7 {[%clk 0:00:02.2]} 24. Rxf7 {[%clk 0:00:10.9]} 24... Kxf7 {[%clk
0:00:02]} 25. Rd7+ {[%clk 0:00:11.8]} 25... Ke6 {[%clk 0:00:02]} 26. Rxb7 {[%clk
0:00:12.5]} 26... g5 {[%clk 0:00:02.1]} 27. Be3 {[%clk 0:00:12.4]} 27... Rc2
{[%clk 0:00:02.2]} 28. g3 {[%clk 0:00:12.3]} 1-0

[Event "*** SCC Grand Prix: Titled Tuesday Blitz"]
[Site "Chess.com"]
[Date "2020.09.29"]
[Round "1"]
[White "bascheyaro"]
[Black "freshfoodcompany"]
[Result "0-1"]
[WhiteElo "2740"]
[BlackElo "2399"]
[TimeControl "180+1"]
[EndTime "10:07:09 PDT"]
[Termination "freshfoodcompany won by checkmate"]

1. d4 {[%clk 0:02:29.6]} 1... d5 {[%clk 0:02:59.4]} 2. c4 {[%clk 0:02:29.8]}
2... e6 {[%clk 0:02:59.7]} 3. Nc3 {[%clk 0:02:30.7]} 3... Be7 {[%clk 0:02:58.4]}
4. Bf4 {[%clk 0:02:30.8]} 4... Nf6 {[%clk 0:02:57.7]} 5. e3 {[%clk 0:02:30.9]}
5... O-O {[%clk 0:02:57.5]} 6. Nf3 {[%clk 0:02:30.9]} 6... c5 {[%clk 0:02:57.1]}
7. dxc5 {[%clk 0:02:31.1]} 7... Bxc5 {[%clk 0:02:57]} 8. cxd5 {[%clk 0:02:31.2]}
8... Nxd5 {[%clk 0:02:56.9]} 9. Nxd5 {[%clk 0:02:31.3]} 9... exd5 {[%clk
0:02:56.6]} 10. a3 {[%clk 0:02:32.2]} 10... Nc6 {[%clk 0:02:56]} 11. Be2 {[%clk
0:02:32]} 11... d4 {[%clk 0:02:49.8]} 12. Qc2 {[%clk 0:02:22.7]} 12... Qe7
{[%clk 0:02:33.4]} 13. Ng5 {[%clk 0:02:03]} 13... g6 {[%clk 0:02:22.9]} 14. Ne4
{[%clk 0:02:03.1]} 14... Bf5 {[%clk 0:02:13.1]} 15. Qxc5 {[%clk 0:01:58.5]}
15... Qxe4 {[%clk 0:02:06.5]} 16. O-O {[%clk 0:01:55]} 16... dxe3 {[%clk
0:01:59.3]} 17. Bxe3 {[%clk 0:01:55.9]} 17... Qe5 {[%clk 0:01:53.8]} 18. Rac1
{[%clk 0:01:34.6]} 18... Qxb2 {[%clk 0:01:40.8]} 19. Bf3 {[%clk 0:01:34.5]}
19... Ne5 {[%clk 0:01:35.3]} 20. Bd4 {[%clk 0:01:29.1]} 20... Nxf3+ {[%clk
0:01:33.8]} 21. gxf3 {[%clk 0:01:29]} 21... Qe2 {[%clk 0:01:24.3]} 22. Rfe1
{[%clk 0:01:17.7]} 22... Qxf3 {[%clk 0:01:22]} 23. Rc3 {[%clk 0:01:17.1]} 23...
Qg4+ {[%clk 0:01:02.5]} 24. Rg3 {[%clk 0:01:16.6]} 24... Qh4 {[%clk 0:00:58.4]}
25. Qe5 {[%clk 0:01:14]} 25... f6 {[%clk 0:00:57.3]} 26. Qd5+ {[%clk 0:01:14.3]}
26... Kh8 {[%clk 0:00:56.4]} 27. Ba1 {[%clk 0:00:49.4]} 27... Rae8 {[%clk
0:00:47.3]} 28. Rd1 {[%clk 0:00:45.7]} 28... Qh5 {[%clk 0:00:41.7]} 29. Qd6
{[%clk 0:00:41.2]} 29... Be6 {[%clk 0:00:31.6]} 30. Re1 {[%clk 0:00:38.4]} 30...
Qd5 {[%clk 0:00:25.8]} 31. Qf4 {[%clk 0:00:18.5]} 31... Qf5 {[%clk 0:00:20.3]}
32. Qh4 {[%clk 0:00:18]} 32... Bd7 {[%clk 0:00:16.8]} 33. Rc1 {[%clk 0:00:15.6]}
33... Kg7 {[%clk 0:00:13.5]} 34. Qd4 {[%clk 0:00:15.4]} 34... Rf7 {[%clk
0:00:12.5]} 35. h4 {[%clk 0:00:15.1]} 35... Qe4 {[%clk 0:00:11.8]} 36. Qd6
{[%clk 0:00:14]} 36... Bc6 {[%clk 0:00:11.1]} 37. Kh2 {[%clk 0:00:13.1]} 37...
Qxh4+ {[%clk 0:00:10.3]} 38. Rh3 {[%clk 0:00:13.1]} 38... Qxf2# {[%clk
0:00:10.1]} 0-1

[Event "*** SCC Grand Prix: Titled Tuesday Blitz"]
[Site "Chess.com"]
[Date "2020.09.29"]
[Round "1"]
[White "carlsen1001"]
[Black "daro94"]
[Result "0-1"]
[WhiteElo "2445"]
[BlackElo "2946"]
[TimeControl "180+1"]
[EndTime "10:07:11 PDT"]
[Termination "daro94 won by resignation"]

1. e4 {[%clk 0:03:00.2]} 1... c6 {[%clk 0:02:08]} 2. d4 {[%clk 0:02:58.2]} 2...
d5 {[%clk 0:02:08.9]} 3. e5 {[%clk 0:02:58.2]} 3... Bf5 {[%clk 0:02:08.5]} 4.
Nf3 {[%clk 0:02:58.7]} 4... e6 {[%clk 0:02:08.2]} 5. Be2 {[%clk 0:02:58.9]} 5...
h6 {[%clk 0:02:07.7]} 6. O-O {[%clk 0:02:58.7]} 6... Ne7 {[%clk 0:02:07.8]} 7.
c4 {[%clk 0:02:58.6]} 7... Nd7 {[%clk 0:02:06.7]} 8. Nc3 {[%clk 0:02:58.1]} 8...
dxc4 {[%clk 0:02:06.5]} 9. Bxc4 {[%clk 0:02:57.5]} 9... Nd5 {[%clk 0:02:07.1]}
10. Re1 {[%clk 0:02:53.1]} 10... Be7 {[%clk 0:02:07.2]} 11. Nxd5 {[%clk
0:02:48.5]} 11... cxd5 {[%clk 0:02:06.5]} 12. Bb3 {[%clk 0:02:48]} 12... Rc8
{[%clk 0:02:04.9]} 13. Bd2 {[%clk 0:02:47.6]} 13... O-O {[%clk 0:02:04.2]} 14.
Rc1 {[%clk 0:02:47.1]} 14... Nb6 {[%clk 0:01:59.9]} 15. Qe2 {[%clk 0:02:46.2]}
15... Qd7 {[%clk 0:01:58.6]} 16. h3 {[%clk 0:02:42.1]} 16... Rxc1 {[%clk
0:01:48.3]} 17. Rxc1 {[%clk 0:02:40.9]} 17... Rc8 {[%clk 0:01:49.2]} 18. Qf1
{[%clk 0:02:29.8]} 18... a6 {[%clk 0:01:39.9]} 19. Ba5 {[%clk 0:02:21.5]} 19...
Na8 {[%clk 0:00:56.7]} 20. Qe1 {[%clk 0:02:11.2]} 20... Be4 {[%clk 0:00:46.5]}
21. Nd2 {[%clk 0:02:07.7]} 21... Bg6 {[%clk 0:00:45.5]} 22. Nf1 {[%clk
0:01:56.1]} 22... Bg5 {[%clk 0:00:38.8]} 23. Rxc8+ {[%clk 0:01:53.8]} 23... Qxc8
{[%clk 0:00:39.7]} 24. Qc3 {[%clk 0:01:54]} 24... Qxc3 {[%clk 0:00:39]} 25. Bxc3
{[%clk 0:01:53.3]} 25... Nc7 {[%clk 0:00:37.4]} 26. a4 {[%clk 0:01:40.7]} 26...
Bd3 {[%clk 0:00:37.5]} 27. Nd2 {[%clk 0:01:35.1]} 27... b5 {[%clk 0:00:31.1]}
28. g3 {[%clk 0:01:32.8]} 28... bxa4 {[%clk 0:00:29]} 29. Bxa4 {[%clk
0:01:32.9]} 29... Nb5 {[%clk 0:00:29.7]} 30. f4 {[%clk 0:01:31]} 30... Nxc3
{[%clk 0:00:19.6]} 31. bxc3 {[%clk 0:01:31.2]} 31... Bd8 {[%clk 0:00:20.3]} 32.
Nb3 {[%clk 0:01:25.1]} 32... g5 {[%clk 0:00:13.6]} 33. Kf2 {[%clk 0:01:23.5]}
33... gxf4 {[%clk 0:00:14.1]} 34. gxf4 {[%clk 0:01:23.6]} 34... Bh4+ {[%clk
0:00:13.2]} 35. Ke3 {[%clk 0:01:23.7]} 35... Bf5 {[%clk 0:00:13.6]} 36. Nc5
{[%clk 0:01:23.8]} 36... a5 {[%clk 0:00:13.2]} 37. Nb7 {[%clk 0:01:20.4]} 37...
Be1 {[%clk 0:00:12.7]} 38. Nxa5 {[%clk 0:01:13.1]} 38... Bxc3 {[%clk 0:00:12.9]}
39. Nc6 {[%clk 0:01:11.7]} 39... Bxh3 {[%clk 0:00:13.1]} 40. Bc2 {[%clk
0:01:11]} 40... Kg7 {[%clk 0:00:13]} 41. Ne7 {[%clk 0:01:08.1]} 41... Bb4 {[%clk
0:00:12.3]} 42. Nc6 {[%clk 0:01:06.3]} 42... Ba3 {[%clk 0:00:12.8]} 43. Bd3
{[%clk 0:01:03.8]} 43... Bg4 {[%clk 0:00:10.7]} 44. Kd2 {[%clk 0:01:02.3]} 44...
h5 {[%clk 0:00:09.6]} 45. Na5 {[%clk 0:01:01.3]} 45... Bb4+ {[%clk 0:00:09.3]}
46. Ke3 {[%clk 0:00:57.2]} 46... Bxa5 {[%clk 0:00:10.2]} 47. Kf2 {[%clk
0:00:57.2]} 47... Bb6 {[%clk 0:00:10.4]} 48. Ke3 {[%clk 0:00:57.4]} 48... h4
{[%clk 0:00:10.1]} 49. Bf1 {[%clk 0:00:57.5]} 49... h3 {[%clk 0:00:10.3]} 50.
Kd3 {[%clk 0:00:57.2]} 50... h2 {[%clk 0:00:09.9]} 51. Bg2 {[%clk 0:00:57.6]}
51... Bf5+ {[%clk 0:00:10.5]} 52. Ke3 {[%clk 0:00:57.1]} 52... Be4 {[%clk
0:00:11.4]} 53. Bf3 {[%clk 0:00:48.9]} 53... Bxf3 {[%clk 0:00:11.3]} 0-1

[Event "*** SCC Grand Prix: Titled Tuesday Blitz"]
[Site "Chess.com"]
[Date "2020.09.29"]
[Round "1"]
[White "anon102030"]
[Black "jens1102"]
[Result "1-0"]
[WhiteElo "2742"]
[BlackElo "2378"]
[TimeControl "180+1"]
[EndTime "10:07:11 PDT"]
[Termination "anon102030 won by resignation"]

1. e4 {[%clk 0:03:00.2]} 1... e5 {[%clk 0:02:58.6]} 2. Nc3 {[%clk 0:02:54.1]}
2... Nf6 {[%clk 0:02:58.6]} 3. g3 {[%clk 0:02:54.1]} 3... Nc6 {[%clk 0:02:58.3]}
4. Bg2 {[%clk 0:02:52.8]} 4... Bb4 {[%clk 0:02:58.9]} 5. d3 {[%clk 0:02:50.4]}
5... O-O {[%clk 0:02:52.7]} 6. Bd2 {[%clk 0:02:46.6]} 6... Nd4 {[%clk
0:02:50.2]} 7. h3 {[%clk 0:02:42.9]} 7... c6 {[%clk 0:02:48.5]} 8. Nce2 {[%clk
0:02:33.7]} 8... Bxd2+ {[%clk 0:02:47.6]} 9. Qxd2 {[%clk 0:02:33.4]} 9... Nxe2
{[%clk 0:02:46.7]} 10. Nxe2 {[%clk 0:02:31.5]} 10... d5 {[%clk 0:02:47.6]} 11.
exd5 {[%clk 0:02:24.9]} 11... cxd5 {[%clk 0:02:48.5]} 12. O-O {[%clk 0:02:22.9]}
12... Re8 {[%clk 0:02:39.9]} 13. Rae1 {[%clk 0:02:11.9]} 13... Qb6 {[%clk
0:02:36.3]} 14. b3 {[%clk 0:02:07.6]} 14... a5 {[%clk 0:02:32]} 15. g4 {[%clk
0:01:57.6]} 15... h6 {[%clk 0:02:23.9]} 16. Ng3 {[%clk 0:01:44.4]} 16... a4
{[%clk 0:02:19.4]} 17. Re2 {[%clk 0:01:40.4]} 17... axb3 {[%clk 0:02:17.3]} 18.
axb3 {[%clk 0:01:41.3]} 18... Bd7 {[%clk 0:02:11.2]} 19. Rfe1 {[%clk 0:01:40.9]}
19... Qd4 {[%clk 0:02:00.4]} 20. c3 {[%clk 0:01:34.2]} 20... Qf4 {[%clk
0:01:53.9]} 21. Nf1 {[%clk 0:01:31.1]} 21... Bc6 {[%clk 0:01:37.4]} 22. Rxe5
{[%clk 0:01:26.2]} 22... Rxe5 {[%clk 0:01:20]} 23. Qxf4 {[%clk 0:01:23.4]} 23...
Rxe1 {[%clk 0:01:20.5]} 24. Kh2 {[%clk 0:01:23.2]} 24... d4 {[%clk 0:01:13.6]}
25. Qxd4 {[%clk 0:01:14.6]} 25... Bxg2 {[%clk 0:01:11]} 26. Kxg2 {[%clk
0:01:15.5]} 26... Raa1 {[%clk 0:01:10]} 27. Ng3 {[%clk 0:01:11.9]} 27... Re8
{[%clk 0:00:49.6]} 28. c4 {[%clk 0:01:07.3]} 28... Ra2 {[%clk 0:00:46.1]} 29. b4
{[%clk 0:01:04.9]} 29... Raa8 {[%clk 0:00:40.9]} 30. Nf5 {[%clk 0:00:58]} 30...
Kh7 {[%clk 0:00:39.4]} 31. Qb6 {[%clk 0:00:52.9]} 31... Ra2 {[%clk 0:00:17]} 32.
Qxb7 {[%clk 0:00:46]} 32... Ree2 {[%clk 0:00:12.9]} 33. Qxf7 {[%clk 0:00:36.9]}
33... Ne8 {[%clk 0:00:08.1]} 34. Ng3 {[%clk 0:00:31.8]} 34... Re5 {[%clk
0:00:04.7]} 35. d4 {[%clk 0:00:30]} 35... Re1 {[%clk 0:00:04.7]} 36. c5 {[%clk
0:00:27.1]} 36... Nf6 {[%clk 0:00:04.8]} 37. Qxa2 {[%clk 0:00:26.2]} 37... Ne4
{[%clk 0:00:02.7]} 38. Nxe4 {[%clk 0:00:23.7]} 38... Rxe4 {[%clk 0:00:03.6]} 1-0

[Event "*** SCC Grand Prix: Titled Tuesday Blitz"]
[Site "Chess.com"]
[Date "2020.09.29"]
[Round "1"]
[White "Chuchofrio1"]
[Black "vugarrasulov"]
[Result "0-1"]
[WhiteElo "2398"]
[BlackElo "2785"]
[TimeControl "180+1"]
[EndTime "10:07:12 PDT"]
[Termination "vugarrasulov won by resignation"]

1. d4 {[%clk 0:03:00.9]} 1... Nf6 {[%clk 0:02:59.5]} 2. c4 {[%clk 0:03:00.1]}
2... e6 {[%clk 0:02:59.7]} 3. Nc3 {[%clk 0:02:59.9]} 3... Bb4 {[%clk 0:02:58.8]}
4. Qc2 {[%clk 0:02:59.8]} 4... c5 {[%clk 0:02:57.6]} 5. dxc5 {[%clk 0:02:56.4]}
5... O-O {[%clk 0:02:57.6]} 6. Nf3 {[%clk 0:02:55.8]} 6... Bxc5 {[%clk
0:02:56.5]} 7. Bf4 {[%clk 0:02:47.3]} 7... b6 {[%clk 0:02:54.7]} 8. e3 {[%clk
0:02:46.6]} 8... Bb7 {[%clk 0:02:54.6]} 9. Be2 {[%clk 0:02:45.5]} 9... Nc6
{[%clk 0:02:54.7]} 10. O-O {[%clk 0:02:44.8]} 10... Rc8 {[%clk 0:02:51.9]} 11.
Rad1 {[%clk 0:02:44.1]} 11... h6 {[%clk 0:02:49.6]} 12. a3 {[%clk 0:02:40.7]}
12... d5 {[%clk 0:02:44.9]} 13. cxd5 {[%clk 0:02:38.6]} 13... Nxd5 {[%clk
0:02:44.4]} 14. Nxd5 {[%clk 0:02:37.9]} 14... exd5 {[%clk 0:02:45.3]} 15. Qd2
{[%clk 0:02:29.7]} 15... Qf6 {[%clk 0:02:37.7]} 16. b4 {[%clk 0:02:26]} 16...
Be7 {[%clk 0:02:34.9]} 17. Nd4 {[%clk 0:02:25.7]} 17... Nxd4 {[%clk 0:02:23.1]}
18. Qxd4 {[%clk 0:02:22.9]} 18... Rc3 {[%clk 0:02:23]} 19. Be5 {[%clk
0:02:18.1]} 19... Qg6 {[%clk 0:02:18.2]} 20. Bd3 {[%clk 0:01:16.3]} 20... Rxd3
{[%clk 0:02:18.1]} 21. Qxd3 {[%clk 0:01:08.6]} 21... Qxd3 {[%clk 0:02:08.7]} 22.
Rxd3 {[%clk 0:01:07.2]} 22... Ba6 {[%clk 0:02:06.4]} 23. Rxd5 {[%clk 0:01:05.3]}
23... Bxf1 {[%clk 0:02:06.8]} 24. Kxf1 {[%clk 0:01:05]} 24... Re8 {[%clk
0:01:44.8]} 25. Bd4 {[%clk 0:01:02.6]} 25... Bf8 {[%clk 0:01:28.8]} 26. Rd7
{[%clk 0:01:02.1]} 26... a5 {[%clk 0:01:28.4]} 27. bxa5 {[%clk 0:00:44.8]} 27...
bxa5 {[%clk 0:01:29.3]} 28. a4 {[%clk 0:00:44.7]} 28... Rc8 {[%clk 0:01:27.1]}
29. Ke2 {[%clk 0:00:35.7]} 29... f6 {[%clk 0:01:18.7]} 30. Kd3 {[%clk
0:00:34.9]} 30... Bb4 {[%clk 0:01:17.6]} 31. g4 {[%clk 0:00:27.9]} 31... Rc1
{[%clk 0:01:12.4]} 32. h4 {[%clk 0:00:26.7]} 32... Rg1 {[%clk 0:01:02.3]} 33. f3
{[%clk 0:00:25.8]} 33... Rh1 {[%clk 0:00:59.5]} 34. h5 {[%clk 0:00:25.4]} 34...
Rh2 {[%clk 0:00:50.9]} 35. Ke4 {[%clk 0:00:25.3]} 35... Ra2 {[%clk 0:00:43.6]}
36. Kf5 {[%clk 0:00:25.4]} 36... Rxa4 {[%clk 0:00:36.2]} 37. Kg6 {[%clk
0:00:25.4]} 37... Bf8 {[%clk 0:00:36.8]} 38. Rd8 {[%clk 0:00:23.1]} 38... Rc4
{[%clk 0:00:37.2]} 39. f4 {[%clk 0:00:18.6]} 39... a4 {[%clk 0:00:34.4]} 40. Ra8
{[%clk 0:00:18.3]} 40... a3 {[%clk 0:00:33]} 41. Rxa3 {[%clk 0:00:16.8]} 41...
Bxa3 {[%clk 0:00:32.3]} 0-1